fUSD/lending_fUSD_20260612
["ID","MTS","AMOUNT","RATE_DAILY","PERIOD"]
[424895281,1781253002000,-1220.28,0.00010671,2]
[424895289,1781253031000,-500.91157275,0.00010636,2]
[424895290,1781253031000,-2051.91896395,0.00010636,2]
[424895288,1781253031000,-502.87462798,0.00010636,2]
[424895287,1781253031000,-699.49483532,0.00010636,2]
[424895339,1781253032000,-675.67596772,0.00011474,2]
[424895336,1781253032000,-675.67596772,0.00011474,2]
[424895337,1781253032000,-675.67596772,0.00011474,2]
[424895333,1781253032000,-316.09924636,0.00011474,2]
[424895329,1781253032000,-675.67596772,0.00011474,2]
[424895332,1781253032000,-231.26075863,0.00011473,2]
[424895331,1781253032000,-181.08379498,0.00011473,2]
[424895328,1781253032000,-675.67596772,0.00011474,2]
[424895335,1781253032000,-675.67596772,0.00011474,2]
[424895334,1781253032000,-675.67596772,0.00011474,2]
[424895338,1781253032000,-675.67596772,0.00011474,2]
[424895340,1781253032000,-675.67596772,0.00011474,2]
[424895343,1781253032000,-675.67596772,0.00011474,2]
[424895344,1781253032000,-675.67596772,0.00011474,2]
[424895345,1781253032000,-675.67596772,0.00011474,2]
[424895350,1781253032000,-675.67596772,0.00011474,2]
[424895342,1781253032000,-675.67596772,0.00011474,2]
[424895346,1781253032000,-675.67596772,0.00011474,2]
[424895351,1781253032000,-675.67596772,0.00011474,2]
[424895348,1781253032000,-675.67596772,0.00011474,2]
[424895349,1781253032000,-675.67596772,0.00011474,2]
[424895347,1781253032000,-675.67596772,0.00011474,2]
[424895330,1781253032000,-359.57672136,0.00011474,2]
[424895341,1781253032000,-675.67596772,0.00011474,2]
[424895327,1781253032000,-675.67596772,0.00011474,2]
[424895352,1781253032000,-675.67596772,0.00011474,2]
[424895323,1781253032000,-671.14729594,0.00011474,2]
[424895291,1781253032000,-352.3140635,0.00010757,2]
[424895293,1781253032000,-166.66,0.00011068,2]
[424895302,1781253032000,-675.67596772,0.00011474,2]
[424895294,1781253032000,-166.66,0.00011178,2]
[424895292,1781253032000,-166.66,0.00010959,2]
[424895295,1781253032000,-166.66,0.00011288,2]
[424895296,1781253032000,-104.82697255,0.00011397,2]
[424895301,1781253032000,-675.67596772,0.00011474,2]
[424895297,1781253032000,-61.83302745,0.00011397,2]
[424895298,1781253032000,-300.0,0.00011473,2]
[424895299,1781253032000,-150.0,0.00011473,2]
[424895300,1781253032000,-319.94617449,0.00011474,2]
[424895303,1781253032000,-675.67596772,0.00011474,2]
[424895304,1781253032000,-675.67596772,0.00011474,2]
[424895305,1781253032000,-675.67596772,0.00011474,2]
[424895310,1781253032000,-675.67596772,0.00011474,2]
[424895316,1781253032000,-41.18112086,0.00011474,2]
[424895306,1781253032000,-675.67596772,0.00011474,2]
[424895320,1781253032000,-4.52867178,0.00011474,2]
[424895318,1781253032000,-634.49484686,0.00011474,2]
[424895314,1781253032000,-675.67596772,0.00011474,2]
[424895308,1781253032000,-675.67596772,0.00011474,2]
[424895312,1781253032000,-675.67596772,0.00011474,2]
[424895325,1781253032000,-675.67596772,0.00011474,2]
[424895363,1781253032000,-672.80075084,0.00011474,2]
[424895371,1781253032000,-672.80075084,0.00011474,2]
[424895369,1781253032000,-672.80075084,0.00011474,2]
[424895392,1781253032000,-672.80075084,0.00011474,2]
[424895391,1781253032000,-672.80075084,0.00011474,2]
[424895394,1781253032000,-672.80075084,0.00011474,2]
[424895395,1781253032000,-672.80075084,0.00011474,2]
[424895402,1781253032000,-655.98073208,0.00011474,2]
[424895401,1781253032000,-655.98073208,0.00011474,2]
[424895405,1781253032000,-655.98073208,0.00011474,2]
[424895400,1781253032000,-655.98073208,0.00011474,2]
[424895398,1781253032000,-655.98073208,0.00011474,2]
[424895404,1781253032000,-655.98073208,0.00011474,2]
[424895397,1781253032000,-672.80075084,0.00011474,2]
[424895396,1781253032000,-672.80075084,0.00011474,2]
[424895399,1781253032000,-655.98073208,0.00011474,2]
[424895403,1781253032000,-655.98073208,0.00011474,2]
[424895407,1781253032000,-655.98073208,0.00011474,2]
[424895406,1781253032000,-655.98073208,0.00011474,2]
[424895408,1781253032000,-655.98073208,0.00011474,2]
[424895412,1781253032000,-500.0,0.00011476,2]
[424895411,1781253032000,-4763.45207369,0.00011475,2]
[424895409,1781253032000,-655.98073208,0.00011474,2]
[424895413,1781253032000,-4192.13655536,0.00011476,2]
[424895410,1781253032000,-11814.94945175,0.00011475,2]
[424895367,1781253032000,-672.80075084,0.00011474,2]
[424895390,1781253032000,-672.80075084,0.00011474,2]
[424895385,1781253032000,-672.80075084,0.00011474,2]
[424895389,1781253032000,-672.80075084,0.00011474,2]
[424895374,1781253032000,-672.80075084,0.00011474,2]
[424895354,1781253032000,-675.67596772,0.00011474,2]
[424895368,1781253032000,-672.80075084,0.00011474,2]
[424895356,1781253032000,-675.67596772,0.00011474,2]
[424895370,1781253032000,-672.80075084,0.00011474,2]
[424895358,1781253032000,-675.67596772,0.00011474,2]
[424895360,1781253032000,-675.67596772,0.00011474,2]
[424895414,1781253032000,-14092.07853874,0.00011476,2]
[424895373,1781253032000,-672.80075084,0.00011474,2]
[424895375,1781253032000,-672.80075084,0.00011474,2]
[424895386,1781253032000,-672.80075084,0.00011474,2]
[424895379,1781253032000,-672.80075084,0.00011474,2]
[424895372,1781253032000,-672.80075084,0.00011474,2]
[424895380,1781253032000,-672.80075084,0.00011474,2]
[424895377,1781253032000,-672.80075084,0.00011474,2]
[424895378,1781253032000,-672.80075084,0.00011474,2]
[424895376,1781253032000,-672.80075084,0.00011474,2]
[424895381,1781253032000,-672.80075084,0.00011474,2]
[424895383,1781253032000,-672.80075084,0.00011474,2]
[424895393,1781253032000,-672.80075084,0.00011474,2]
[424895384,1781253032000,-672.80075084,0.00011474,2]
[424895382,1781253032000,-672.80075084,0.00011474,2]
[424895388,1781253032000,-672.80075084,0.00011474,2]
[424895387,1781253032000,-672.80075084,0.00011474,2]
[424895366,1781253032000,-672.80075084,0.00011474,2]
[424895365,1781253032000,-672.80075084,0.00011474,2]
[424895415,1781253033000,-7478.94071547,0.00011476,2]
[424895416,1781253033000,-1255.15214129,0.00011497,2]
[424895419,1781253033000,-2000.0,0.00011507,2]
[424895418,1781253033000,-166.66,0.00011507,2]
[424895421,1781253033000,-234.83544428,0.00011507,2]
[424895420,1781253033000,-15.16455572,0.00011507,2]
[424895422,1781253033000,-275.11829116,0.00011561,2]
[424895417,1781253033000,-3100.0,0.000115,4]
[424895480,1781253039000,-500.0,0.00011772,2]
[424895460,1781253039000,-250.87153082,0.00011763,2]
[424895463,1781253039000,-43059.47341074,0.00011772,2]
[424895462,1781253039000,-151.0,0.0001177,2]
[424895466,1781253039000,-1060.04510716,0.00011772,3]
[424895474,1781253039000,-500.0,0.00011772,2]
[424895475,1781253039000,-500.0,0.00011772,2]
[424895465,1781253039000,-1063.13985874,0.00011772,3]
[424895468,1781253039000,-1076.83830855,0.00011772,3]
[424895467,1781253039000,-1066.81128949,0.00011772,3]
[424895469,1781253039000,-1076.83830855,0.00011772,3]
[424895472,1781253039000,-250.0,0.00011772,2]
[424895473,1781253039000,-500.0,0.00011772,2]
[424895471,1781253039000,-1044.95885455,0.00011772,3]
[424895476,1781253039000,-500.0,0.00011772,2]
[424895478,1781253039000,-500.0,0.00011772,2]
[424895477,1781253039000,-500.0,0.00011772,2]
[424895482,1781253039000,-500.0,0.00011772,2]
[424895483,1781253039000,-2498500.0,0.00011773,2]
[424895484,1781253039000,-152.656123,0.00011773,2]
[424895479,1781253039000,-500.0,0.00011772,2]
[424895481,1781253039000,-500.0,0.00011772,2]
[424895470,1781253039000,-1058.4392676,0.00011772,3]
[424895464,1781253039000,-21571.01925412,0.00011772,2]
[424895459,1781253039000,-3259.0,0.00011753,2]
[424895457,1781253039000,-169514.35872665,0.00011733,2]
[424895436,1781253039000,-205.21567773,0.00011473,2]
[424895437,1781253039000,-409.09707871,0.00011561,2]
[424895438,1781253039000,-500.0,0.00011562,2]
[424895440,1781253039000,-500.0,0.00011562,2]
[424895439,1781253039000,-500.0,0.00011562,2]
[424895442,1781253039000,-500.0,0.00011562,2]
[424895441,1781253039000,-500.0,0.00011562,2]
[424895443,1781253039000,-500.0,0.00011562,2]
[424895445,1781253039000,-500.0,0.00011575,2]
[424895444,1781253039000,-1498683.4628859,0.00011563,2]
[424895461,1781253039000,-29.74301925,0.0001177,2]
[424895446,1781253039000,-4181.1272,0.00011576,2]
[424895448,1781253039000,-6300.0,0.000116,4]
[424895447,1781253039000,-99380.3333,0.00011576,2]
[424895450,1781253039000,-694.073191,0.00011676,2]
[424895452,1781253039000,-178.91034135,0.00011697,2]
[424895453,1781253039000,-9500.0,0.000117,4]
[424895451,1781253039000,-609.537521,0.00011697,2]
[424895454,1781253039000,-24340.10812721,0.00011733,2]
[424895455,1781253039000,-64233.93044584,0.00011733,2]
[424895456,1781253039000,-113316.2671975,0.00011733,2]
[424895458,1781253039000,-500.0,0.0001175,2]
[424895449,1781253039000,-430.41251093,0.00011673,2]
[424895485,1781253039000,-500.0,0.00011773,2]
[424895492,1781253039000,-1063.13985874,0.00011799,3]
[424895487,1781253039000,-500.0,0.00011773,2]
[424895514,1781253039000,-250.0,0.00011911,2]
[424895515,1781253039000,-168.99,0.00011944,2]
[424895517,1781253039000,-401.00955678,0.00011972,2]
[424895519,1781253039000,-242.52,0.00011988,2]
[424895520,1781253039000,-1220.28,0.00012005,2]
[424895518,1781253039000,-601.94042556,0.00011972,2]
[424895521,1781253039000,-500.0,0.00012024,2]
[424895522,1781253039000,-160.0,0.00012026,2]
[424895528,1781253039000,-228.34,0.0001228,2]
[424895524,1781253039000,-43059.47341074,0.00012067,2]
[424895516,1781253039000,-11814.94945168,0.00011964,2]
[424895525,1781253039000,-21571.01925412,0.00012067,2]
[424895523,1781253039000,-7145.67,0.00012055,2]
[424895526,1781253039000,-430.41251087,0.00012211,2]
[424895531,1781253039000,-43059.47341074,0.00012363,2]
[424895530,1781253039000,-202.21,0.00012329,2]
[424895532,1781253039000,-21571.01925412,0.00012363,2]
[424895533,1781253039000,-11814.94945168,0.00012454,2]
[424895534,1781253039000,-255.0,0.0001254,2]
[424895536,1781253039000,-420.0,0.00012602,2]
[424895535,1781253039000,-500.0,0.00012572,2]
[424895486,1781253039000,-500.0,0.00011773,2]
[424895529,1781253039000,-500.0,0.00012298,2]
[424895513,1781253039000,-193.26637723,0.00011911,2]
[424895527,1781253039000,-163.66,0.00012223,2]
[424895510,1781253039000,-1759.74592773,0.00011873,2]
[424895495,1781253039000,-1060.04510716,0.00011799,3]
[424895512,1781253039000,-15900.0,0.000119,4]
[424895494,1781253039000,-1060.04510716,0.00011799,3]
[424895490,1781253039000,-151.0,0.00011797,2]
[424895497,1781253039000,-1076.83830855,0.00011799,3]
[424895496,1781253039000,-1066.81128949,0.00011799,3]
[424895491,1781253039000,-151.0,0.00011797,2]
[424895488,1781253039000,-500.0,0.00011773,2]
[424895489,1781253039000,-511.922287,0.00011773,2]
[424895493,1781253039000,-1060.04510716,0.00011799,3]
[424895506,1781253039000,-250.0,0.00011832,2]
[424895498,1781253039000,-1076.83830855,0.00011799,3]
[424895507,1781253039000,-2210.8,0.00011859,2]
[424895508,1781253039000,-267.29716696,0.00011873,2]
[424895504,1781253039000,-500.0,0.00011799,2]
[424895502,1781253039000,-1044.95885455,0.00011799,3]
[424895505,1781253039000,-12700.0,0.000118,4]
[424895501,1781253039000,-1076.83830855,0.00011799,3]
[424895499,1781253039000,-1076.83830855,0.00011799,3]
[424895509,1781253039000,-1401.20101214,0.00011873,2]
[424895500,1781253039000,-1076.83830855,0.00011799,3]
[424895503,1781253039000,-1044.95885456,0.00011799,3]
[424895511,1781253039000,-558.31250894,0.00011873,2]
[424895569,1781253040000,-21571.01925412,0.0001325,2]
[424895571,1781253040000,-195.322017,0.00013275,2]
[424895575,1781253040000,-188.2194,0.00013275,2]
[424895573,1781253040000,-196.042198,0.00013275,2]
[424895568,1781253040000,-43059.47341074,0.0001325,2]
[424895576,1781253040000,-430.41251087,0.00013287,2]
[424895572,1781253040000,-230.644035,0.00013275,2]
[424895567,1781253040000,-1255.15214129,0.00013199,2]
[424895570,1781253040000,-160.0,0.00013275,2]
[424895578,1781253040000,-1220.28,0.00013339,2]
[424895574,1781253040000,-242.246994,0.00013275,2]
[424895577,1781253040000,-609.53752098,0.00013299,2]
[424895590,1781253040000,-150.0,0.00013488,2]
[424895580,1781253040000,-500.0,0.00013394,2]
[424895579,1781253040000,-312.271515,0.00013341,2]
[424895581,1781253040000,-427.874285,0.00013408,2]
[424895584,1781253040000,-150.00000001,0.00013488,2]
[424895586,1781253040000,-150.0,0.00013488,2]
[424895582,1781253040000,-208.90998,0.00013424,2]
[424895583,1781253040000,-11814.94945168,0.00013432,2]
[424895585,1781253040000,-150.0,0.00013488,2]
[424895588,1781253040000,-150.0,0.00013488,2]
[424895591,1781253040000,-152.29573647,0.00013488,2]
[424895593,1781253040000,-150.0,0.00013488,2]
[424895566,1781253040000,-177.83,0.00013183,2]
[424895587,1781253040000,-150.0,0.00013488,2]
[424895564,1781253040000,-181.74,0.0001309,2]
[424895537,1781253040000,-448.26403375,0.00012623,2]
[424895563,1781253040000,-150.13333076,0.00013073,2]
[424895599,1781253040000,-21571.01925412,0.00013546,2]
[424895539,1781253040000,-360.74414422,0.00012624,2]
[424895542,1781253040000,-157.14213509,0.00012668,2]
[424895538,1781253040000,-300.0,0.00012624,2]
[424895540,1781253040000,-43059.47341074,0.00012659,2]
[424895541,1781253040000,-21571.01925412,0.00012659,2]
[424895543,1781253040000,-156.26402911,0.00012688,2]
[424895544,1781253040000,-229358.9529,0.00012733,2]
[424895546,1781253040000,-1510.91,0.0001282,2]
[424895549,1781253040000,-239.40372877,0.00012857,2]
[424895545,1781253040000,-430.41251087,0.00012749,2]
[424895547,1781253040000,-500.0,0.00012846,2]
[424895552,1781253040000,-186.8,0.00012892,2]
[424895550,1781253040000,-276.03,0.00012877,2]
[424895551,1781253040000,-186.8,0.00012892,2]
[424895553,1781253040000,-11814.94945168,0.00012943,2]
[424895554,1781253040000,-500.0,0.00012953,2]
[424895556,1781253040000,-21571.01925412,0.00012954,2]
[424895555,1781253040000,-43059.47341074,0.00012954,2]
[424895557,1781253040000,-160.0,0.00012985,2]
[424895558,1781253040000,-174.741188,0.00012985,2]
[424895559,1781253040000,-189.482377,0.00012985,2]
[424895560,1781253040000,-1601.13316532,0.00013,2]
[424895562,1781253040000,-175.22982642,0.00013073,2]
[424895561,1781253040000,-464.935686,0.0001305,2]
[424895565,1781253040000,-500.0,0.0001312,2]
[424895589,1781253040000,-150.0,0.00013488,2]
[424895548,1781253040000,-168.99,0.00012854,2]
[424895595,1781253040000,-150.0,0.00013528,2]
[424895632,1781253040000,-500.0,0.00013697,2]
[424895630,1781253040000,-500.0,0.00013697,2]
[424895638,1781253040000,-500.0,0.00013697,2]
[424895631,1781253040000,-500.0,0.00013697,2]
[424895633,1781253040000,-500.0,0.00013697,2]
[424895634,1781253040000,-500.0,0.00013697,2]
[424895636,1781253040000,-500.0,0.00013697,2]
[424895637,1781253040000,-500.0,0.00013697,2]
[424895635,1781253040000,-500.0,0.00013697,2]
[424895640,1781253040000,-500.0,0.00013697,2]
[424895651,1781253040000,-500.0,0.00013697,2]
[424895650,1781253040000,-500.0,0.00013697,2]
[424895627,1781253040000,-500.0,0.00013697,2]
[424895639,1781253040000,-500.0,0.00013697,2]
[424895653,1781253040000,-500.0,0.00013697,2]
[424895641,1781253040000,-500.0,0.00013697,2]
[424895644,1781253040000,-500.0,0.00013697,2]
[424895643,1781253040000,-500.0,0.00013697,2]
[424895648,1781253040000,-500.0,0.00013697,2]
[424895649,1781253040000,-500.0,0.00013697,2]
[424895645,1781253040000,-500.0,0.00013697,2]
[424895647,1781253040000,-500.0,0.00013697,2]
[424895646,1781253040000,-500.0,0.00013697,2]
[424895652,1781253040000,-500.0,0.00013697,2]
[424895655,1781253040000,-500.0,0.00013697,2]
[424895592,1781253040000,-150.0,0.00013488,2]
[424895642,1781253040000,-500.0,0.00013697,2]
[424895628,1781253040000,-500.0,0.00013697,2]
[424895654,1781253040000,-500.0,0.00013697,2]
[424895612,1781253040000,-534.42,0.00013663,2]
[424895629,1781253040000,-500.0,0.00013697,2]
[424895596,1781253040000,-163.66,0.00013535,2]
[424895597,1781253040000,-163.17,0.00013543,2]
[424895594,1781253040000,-150.0,0.00013488,2]
[424895601,1781253040000,-233.345874,0.00013546,2]
[424895600,1781253040000,-233.345874,0.00013546,2]
[424895605,1781253040000,-150.0,0.00013569,2]
[424895604,1781253040000,-252.710646,0.00013558,2]
[424895603,1781253040000,-233.345874,0.00013546,2]
[424895602,1781253040000,-233.345874,0.00013546,2]
[424895606,1781253040000,-150.0,0.00013609,2]
[424895608,1781253040000,-238.283439,0.00013634,2]
[424895607,1781253040000,-150.0,0.00013613,2]
[424895598,1781253040000,-43059.47341074,0.00013546,2]
[424895611,1781253040000,-150.0,0.00013654,2]
[424895616,1781253040000,-150.0,0.00013675,2]
[424895610,1781253040000,-150.0,0.00013654,2]
[424895625,1781253040000,-500.0,0.00013697,2]
[424895609,1781253040000,-150.0,0.0001365,2]
[424895623,1781253040000,-500.0,0.00013697,2]
[424895614,1781253040000,-500.0,0.00013668,2]
[424895618,1781253040000,-150.0,0.0001369,2]
[424895620,1781253040000,-500.0,0.00013697,2]
[424895621,1781253040000,-500.0,0.00013697,2]
[424895626,1781253040000,-500.0,0.00013697,2]
[424895622,1781253040000,-500.0,0.00013697,2]
[424895624,1781253040000,-500.0,0.00013697,2]
[424895703,1781253041000,-500.0,0.00013697,2]
[424895701,1781253041000,-500.0,0.00013697,2]
[424895698,1781253041000,-500.0,0.00013697,2]
[424895696,1781253041000,-500.0,0.00013697,2]
[424895687,1781253041000,-500.0,0.00013697,2]
[424895695,1781253041000,-500.0,0.00013697,2]
[424895704,1781253041000,-500.0,0.00013697,2]
[424895694,1781253041000,-500.0,0.00013697,2]
[424895689,1781253041000,-500.0,0.00013697,2]
[424895691,1781253041000,-500.0,0.00013697,2]
[424895693,1781253041000,-500.0,0.00013697,2]
[424895699,1781253041000,-500.0,0.00013697,2]
[424895706,1781253041000,-500.0,0.00013698,2]
[424895702,1781253041000,-500.0,0.00013697,2]
[424895700,1781253041000,-500.0,0.00013697,2]
[424895705,1781253041000,-500.0,0.00013697,2]
[424895709,1781253041000,-500.0,0.00013698,2]
[424895713,1781253041000,-500.0,0.00013698,2]
[424895708,1781253041000,-500.0,0.00013698,2]
[424895710,1781253041000,-500.0,0.00013698,2]
[424895715,1781253041000,-500.0,0.00013698,2]
[424895707,1781253041000,-500.0,0.00013698,2]
[424895712,1781253041000,-500.0,0.00013698,2]
[424895686,1781253041000,-500.0,0.00013697,2]
[424895714,1781253041000,-500.0,0.00013698,2]
[424895697,1781253041000,-500.0,0.00013697,2]
[424895692,1781253041000,-500.0,0.00013697,2]
[424895672,1781253041000,-500.0,0.00013697,2]
[424895690,1781253041000,-500.0,0.00013697,2]
[424895711,1781253041000,-500.0,0.00013698,2]
[424895656,1781253041000,-500.0,0.00013697,2]
[424895658,1781253041000,-500.0,0.00013697,2]
[424895659,1781253041000,-500.0,0.00013697,2]
[424895661,1781253041000,-500.0,0.00013697,2]
[424895660,1781253041000,-500.0,0.00013697,2]
[424895657,1781253041000,-500.0,0.00013697,2]
[424895663,1781253041000,-500.0,0.00013697,2]
[424895677,1781253041000,-500.0,0.00013697,2]
[424895678,1781253041000,-500.0,0.00013697,2]
[424895679,1781253041000,-500.0,0.00013697,2]
[424895676,1781253041000,-500.0,0.00013697,2]
[424895665,1781253041000,-500.0,0.00013697,2]
[424895667,1781253041000,-500.0,0.00013697,2]
[424895675,1781253041000,-500.0,0.00013697,2]
[424895673,1781253041000,-500.0,0.00013697,2]
[424895670,1781253041000,-500.0,0.00013697,2]
[424895674,1781253041000,-500.0,0.00013697,2]
[424895669,1781253041000,-500.0,0.00013697,2]
[424895680,1781253041000,-500.0,0.00013697,2]
[424895682,1781253041000,-500.0,0.00013697,2]
[424895681,1781253041000,-500.0,0.00013697,2]
[424895684,1781253041000,-500.0,0.00013697,2]
[424895688,1781253041000,-500.0,0.00013697,2]
[424895683,1781253041000,-500.0,0.00013697,2]
[424895685,1781253041000,-500.0,0.00013697,2]
[424895716,1781253041000,-500.0,0.00013698,2]
[424895719,1781253041000,-591.63575206,0.00013698,2]
[424895718,1781253041000,-500.0,0.00013698,2]
[424895749,1781253041000,-500.0,0.00013698,2]
[424895753,1781253041000,-500.0,0.00013698,2]
[424895755,1781253041000,-500.0,0.00013698,2]
[424895751,1781253041000,-500.0,0.00013698,2]
[424895750,1781253041000,-500.0,0.00013698,2]
[424895752,1781253041000,-500.0,0.00013698,2]
[424895754,1781253041000,-500.0,0.00013698,2]
[424895759,1781253041000,-925.89,0.00013698,2]
[424895756,1781253041000,-323.84,0.00013698,2]
[424895757,1781253041000,-925.89,0.00013698,2]
[424895758,1781253041000,-925.89,0.00013698,2]
[424895771,1781253041000,-500.0,0.00013698,2]
[424895745,1781253041000,-500.0,0.00013698,2]
[424895761,1781253041000,-925.89,0.00013698,2]
[424895762,1781253041000,-500.0,0.00013698,2]
[424895763,1781253041000,-500.0,0.00013698,2]
[424895764,1781253041000,-500.0,0.00013698,2]
[424895765,1781253041000,-254.97411398,0.00013698,2]
[424895768,1781253041000,-1540.46,0.00013698,2]
[424895767,1781253041000,-1540.46,0.00013698,2]
[424895769,1781253041000,-1540.46,0.00013698,2]
[424895766,1781253041000,-1540.46,0.00013698,2]
[424895770,1781253041000,-1540.46,0.00013698,2]
[424895726,1781253041000,-500.0,0.00013698,2]
[424895774,1781253041000,-500.0,0.00013698,2]
[424895773,1781253041000,-500.0,0.00013698,2]
[424895760,1781253041000,-925.89,0.00013698,2]
[424895748,1781253041000,-500.0,0.00013698,2]
[424895772,1781253041000,-500.0,0.00013698,2]
[424895744,1781253041000,-500.0,0.00013698,2]
[424895717,1781253041000,-500.0,0.00013698,2]
[424895720,1781253041000,-502.39573893,0.00013698,2]
[424895723,1781253041000,-500.0,0.00013698,2]
[424895721,1781253041000,-500.0,0.00013698,2]
[424895725,1781253041000,-500.0,0.00013698,2]
[424895722,1781253041000,-520.28473035,0.00013698,2]
[424895724,1781253041000,-500.0,0.00013698,2]
[424895747,1781253041000,-500.0,0.00013698,2]
[424895732,1781253041000,-500.0,0.00013698,2]
[424895729,1781253041000,-500.0,0.00013698,2]
[424895730,1781253041000,-500.0,0.00013698,2]
[424895728,1781253041000,-506.97171654,0.00013698,2]
[424895727,1781253041000,-500.0,0.00013698,2]
[424895734,1781253041000,-500.0,0.00013698,2]
[424895746,1781253041000,-500.0,0.00013698,2]
[424895731,1781253041000,-500.0,0.00013698,2]
[424895743,1781253041000,-500.0,0.00013698,2]
[424895742,1781253041000,-500.0,0.00013698,2]
[424895740,1781253041000,-500.0,0.00013698,2]
[424895741,1781253041000,-500.0,0.00013698,2]
[424895738,1781253041000,-298.73640361,0.00013698,2]
[424895735,1781253041000,-500.0,0.00013698,2]
[424895733,1781253041000,-500.0,0.00013698,2]
[424895737,1781253041000,-500.0,0.00013698,2]
[424895736,1781253041000,-500.0,0.00013698,2]
[424895739,1781253041000,-500.0,0.00013698,2]
[424895806,1781253042000,-457.12873569,0.00013698,2]
[424895810,1781253042000,-500.0,0.00013698,2]
[424895809,1781253042000,-500.0,0.00013698,2]
[424895811,1781253042000,-500.0,0.00013698,2]
[424895803,1781253042000,-500.0,0.00013698,2]
[424895807,1781253042000,-500.0,0.00013698,2]
[424895813,1781253042000,-500.0,0.00013698,2]
[424895805,1781253042000,-500.0,0.00013698,2]
[424895802,1781253042000,-500.0,0.00013698,2]
[424895808,1781253042000,-500.0,0.00013698,2]
[424895815,1781253042000,-500.0,0.00013698,2]
[424895822,1781253042000,-1529.75,0.00013698,2]
[424895812,1781253042000,-500.0,0.00013698,2]
[424895817,1781253042000,-500.0,0.00013698,2]
[424895827,1781253042000,-1529.75,0.00013698,2]
[424895828,1781253042000,-1529.75,0.00013698,2]
[424895816,1781253042000,-500.0,0.00013698,2]
[424895819,1781253042000,-500.0,0.00013698,2]
[424895821,1781253042000,-1529.75,0.00013698,2]
[424895818,1781253042000,-500.0,0.00013698,2]
[424895820,1781253042000,-555.64276628,0.00013698,2]
[424895823,1781253042000,-1529.75,0.00013698,2]
[424895804,1781253042000,-500.0,0.00013698,2]
[424895814,1781253042000,-500.0,0.00013698,2]
[424895801,1781253042000,-500.0,0.00013698,2]
[424895788,1781253042000,-500.0,0.00013698,2]
[424895798,1781253042000,-500.0,0.00013698,2]
[424895826,1781253042000,-1529.75,0.00013698,2]
[424895778,1781253042000,-500.0,0.00013698,2]
[424895775,1781253042000,-500.0,0.00013698,2]
[424895781,1781253042000,-500.0,0.00013698,2]
[424895782,1781253042000,-500.0,0.00013698,2]
[424895779,1781253042000,-500.0,0.00013698,2]
[424895777,1781253042000,-500.0,0.00013698,2]
[424895780,1781253042000,-500.0,0.00013698,2]
[424895784,1781253042000,-500.0,0.00013698,2]
[424895783,1781253042000,-500.0,0.00013698,2]
[424895794,1781253042000,-500.0,0.00013698,2]
[424895785,1781253042000,-500.0,0.00013698,2]
[424895787,1781253042000,-500.0,0.00013698,2]
[424895786,1781253042000,-500.0,0.00013698,2]
[424895792,1781253042000,-500.0,0.00013698,2]
[424895791,1781253042000,-500.0,0.00013698,2]
[424895789,1781253042000,-500.0,0.00013698,2]
[424895793,1781253042000,-500.0,0.00013698,2]
[424895790,1781253042000,-500.0,0.00013698,2]
[424895796,1781253042000,-500.0,0.00013698,2]
[424895797,1781253042000,-500.0,0.00013698,2]
[424895795,1781253042000,-592.4,0.00013698,2]
[424895799,1781253042000,-500.0,0.00013698,2]
[424895800,1781253042000,-500.0,0.00013698,2]